{"text_format":"1","workbook":"xlsx","n_sheets":5,"sheets":["DATOS","UNITARIOS","PRESUPUESTO","MEDICION","Hoja2"],"not_rendered":{"charts":0,"images":1,"macros":1,"external_links":0,"defined_names":0,"comments":0,"pivot_tables":0},"unopened":[],"bounds":{"document_bytes":16777216,"sheet_cells":100000,"rows_first":2000,"rows_last":500,"rows_between":2000,"halvings":0,"cell_chars":16384,"cell_head_chars":4096},"cells_cut":0,"cells_raw":0,"read":"whole","date_system":"1900"}

{"sheet":"DATOS","index":0,"n_rows":154,"n_cols":8,"rows_kept":154,"cut":false,"hidden":false,"merged":[]}
[]
[null,"c/ AMERIQUES, 11 - EL PERELLÓ - SUECA"]
[null,{"$f":"PRESUPUESTO!I159","v":3196}]
[null,"trabajos a realizar",null,"mediciones"]
["DEMOLICIONES"]
[null,null,null,"BAJA","MEDIA","ALTA","INTRO"]
[1,"Demolición de pavimento existente en LA ZONA DE ACTUACIÓN, de baldosas de piedra natural, terrazo o gres, y picado del material de agarre, con medios manuales y carga manual de escombros sobre camión o contenedor.","m2",5,null,null,0]
[null,null,null,"BAJA","MEDIA","ALTA","INTRO"]
[null,"Demolición de chapado de placas de piedra natural y picado de la capa base de mortero, con medios manuales, y carga manual de escombros sobre camión o contenedor.","m2"]
[null,null,null,"BAJA","MEDIA","ALTA","INTRO"]
[null,"Demolición de alicatado de azulejo y picado de la capa base de mortero, con medios manuales, y carga manual de escombros sobre camión o contenedor.","m2",null,0]
[null,null,null,"BAJA","MEDIA","ALTA","INTRO"]
[null,"Levantado de panelado de madera en paredes existentes en zaguan","m2"]
[null,null,null,"BAJA","MEDIA","ALTA","INTRO"]
[null,"Desmontaje y retirada de espejos/decoración existentes en paredes. Sin transporte a vertedero.","m2"]
[null,null,null,"RECUPERAR","NO RECUP."]
[null,"Levantado de barandillas y pasamanos metálicos, con retirada de escombros y carga, a pie de obra.","ud",null,0]
[null,null,null,"RECUPERAR","NO RECUP."]
[null,"Desmontaje de hoja de puerta interior de paso de carpintería de madera, galces, tapajuntas y herrajes, con medios manuales y carga manual del material desmontado sobre camión o contenedor.","ud"]
[null,null,null,"BAJAR(COTA 0)","CEGADO+APERTURA (90º-180º)","QUITAR+NUEVA(FURE)"]
[null,"Levantado, recolocación, cegado de hueco y colocación de puertas de ascensor, según tipo de operación. Incluso p.p. de remates. Medida la unidad terminada y funcionando.","ud",0,0]
[null,null,null,"NO COMPLEJO","COMPLEJO"]
[null,"Demolición de relleno de zaguan,escalera,zona perimetral del ascensor, hasta llegar a nivel de acceso, ","m3",0]
[null,null,null,"HASTA 9 PELD",">9 PELD.","COMPLETA"]
[null,"Demolición parte de escalera a remodelar. Incluso retirada de escombro a pie de carga.","ud",0]
[null,null,null,"CANTIDAD"]
[null,"Demolición de peldañeado existente","ud",0]
[null,null,null,"M2"]
[null,"Demolición de tabicones de ladrillo hueco doble, por medios manuales, incluso limpieza y retirada de escombros a pie de carga, sin transporte al vertedero y con p.p. de medios auxiliares.","m2"]
[null,null,null,"BAJA","MEDIA","ALTA","INTRO."]
[null,"Demolición de falsos techos continuos de placas de escayola, yeso, corcho o material similar, por medios manuales, incluso limpieza y retirada de escombros a pie de carga, sin transporte al vertedero y con p.p. de medios auxiliares.","m2"]
[null,null,null,"DESMONTAJR","REUBICAR"]
[null,"Desmontaje de buzones, con retirada a vertedero",null,0,0]
[null,null,null,"BAJAR","REHACER","IMPERM.","COMPLETO","INTRO"]
[null,"Realización de foso necesario para cumplir normativa.","ud",0,null,null,0]
[null,null,null,"CANCELAS","SANITARIOS","JARDINERAS","INTRO"]
[2,"Demolición de otros elementos existentes en la zona de actuación. Sin recuperación del material.","ud",1]
[null,null,null,"BAJA","MEDIA","ALTA","INTRO."]
[null,"Alquiler de contenedor para retirada de escombros a vertedero. Incluso p.p. de tasas y permisos necesarios.","ud",null,0]
[]
[]
["ALBAÑILERÍA"]
[null,null,null,"BAJA","MEDIA","ALTA","INTRO"]
[null,"Construccion de pared soporte con ladrillo perforado 25x11.5x7 cm para soporte de escalera, tramo de escalera o zona recortada.","m2",null,0]
[null,null,null,"HASTA 9 PELD",">9 PELD.","COMPLETA"]
[null,"Bóveda de escalera, ladrillo hueco sencillo, 24x11,5x4 cm, dos hojas.","ud",0]
[null,null,null,"GENERAL","RESTRINGIDO"]
[null,"Formación de peldaño con ladrillos huecos de 25x12x4cm, recibido con mortero de cemento, incluso replanteo, nivelación, p.p. de mermas, roturas, humedecido de las piezas y limpieza. Medida la unidad terminada.","ud",0]
[null,null,null,"BAJA","MEDIA","ALTA","INTRO"]
[null,"Hoja  de cerramiento , de 7/11 cm de espesor de fábrica de ladrillo cerámico hueco doble/triple, para revestir, recibida con mortero de cemento M-5.","m2"]
[null,null,null,"INTERIOR","EDIFICIO"]
[null,"Colocacion de puerta con formacion de lindares, aristas,terminacion de cerramiento superior de ladrillo, totalmente lucido y terminado. (no incluida la puerta)","ud",0]
[null,null,null,"<10%"]
[3,"Formación de rampa pendiente máxima inferior al 10% ","m2",8]
[null,null,null,0.25]
[null,"Formación de rampa pendiente máxima del 25%, con desnivel máximo de 5 cm. según DB SUA","ud",0]
[]
[]
[]
["REVESTIMIENTOS"]
[null,null,null,"BAJA","MEDIA","ALTA","INTRO"]
[null,"Solado de baldosas de mármol nacional, en FORMATO COMERCIAL 60x30x2 cm, en modelo y color a elegir por la Comunidad de entre las muestras propuestas, para pavimentar el suelo del zaguán, en las zonas recortadas y/o vaciadas así como los rellanos afectados y las rampas que se hubieran podido crear o suprimir. Acabado pulido, recibidas con adhesivo cementoso mejorado, C2 y rejuntadas con mortero de juntas cementoso, CG1, para junta mínima (entre 1,5 y 3 mm), con la misma tonalidad de las piezas. Incluso mano de obra, material de agarre y rejunte.","m2",0,0]
[null,null,null,"BAJA","MEDIA","ALTA","INTRO"]
[null,"Suministro y colocación de mármol nacional, en FORMATO COMERCIAL, en modelo y color a elegir por la Comunidad de entre las muestras propuestas, para chapar las paredes del zaguán afectadas por las obras.  Incluso mano de obra, material de agarre y rejunte. Totalmente colocado y nivelado, con pulido y abrillantado de taller.","m2",null,0]
[null,null,null,"BAJA","MEDIA","ALTA","INTRO"]
[null,"Alicatado con gres porcelánico pulido, 1/0/-/-, 31,6x59,2 cm, 18 €/m², colocado sobre una superficie soporte de mortero de cemento u hormigón, en paramentos interiores, mediante adhesivo cementoso normal, C1 gris, con doble encolado, con junta abierta (separación entre 3 y 15 mm); cantoneras de PVC.","m2"]
[null,null,null,"M2"]
[4,"Solado de baldosas cerámicas de gres porcelánico, de 60x30 cm, a elegir de entre las muestras propuestas, recibidas con mortero de cemento M-5 de 3 cm de espesor y rejuntadas con lechada de cemento blanco, L, BL-V 22,5, para junta mínima (entre 1,5 y 3 mm), coloreada con la misma tonalidad de las piezas.","m2",8]
[null,null,null,"ud"]
[null,"Peldaño de mármol nacional, a elegir por la propiedad de entre los propuestos, de 3cm de espesor, FORMA RECTANGULAR, SIN BOCEL y tabica de 2 cm de espesor. Incluso p.p. de zanquín del mismo material de 7cm, recibido con mortero de cemento y arena de miga 1:6. Incluso rejuntado y limpieza.","Ud",0]
[null,null,null,"ud"]
[null,"Peldaño de mármol nacional, a elegir por la propiedad de entre los propuestos, de 3cm de espesor, CON FORMAS ESPECIALES, SIN BOCEL,  aplantillados y tabica de 2 cm de espesor, p.p. de zanquín del mismo material de 7cm, recibido con mortero de cemento y arena de miga 1/6, incluso rejuntado y limpieza.","ud"]
[null,null,null,"M2","M2"]
[null,"Suministro e instalación de panelado de madera/espejo, pegado a rastreles, a elegir por la comunidad de entre las muestras propuestas","m2",0]
[null,null,null,"M2","M2"]
[5,"Enlucido de yeso de aplicación en capa fina C6 en una superficie previamente guarnecida, sobre paramento vertical, de hasta 3 m de altura./Enfoscado de cemento, a buena vista, aplicado sobre un paramento vertical interior, hasta 3 m de altura, acabado superficial fratasado, con mortero de cemento M-5.","m2",10]
[null,null,null,"PUERTA CUARTO","PUERTA ASC","FRENTE ASC(X PARADA)"]
[null,"Lacado de puerta en color a elegir por la Comunidad de entre las muestras propuestas.","ud",0,0]
[null,null,null,"BAJA","MEDIA","ALTA","INTRO"]
[6,"Pintura plástica lisa mate color, en interiores,en paramentos horizontales y verticales, dos manos. Incluso lijado, mano de imprimación con plástico diluído, plastecido, lijado y acabado.","ud",1,0]
[]
[]
["CERRAMIENTOS Y PROTECCIONES"]
[null,null,null,"TUBO/BARROTE","TUBO/VIDRIO","INOX/BARROTE","INOX/VIDRIO","INTRO"]
[7,"Barandilla metálica de 100 cm de altura, diseño según especificaciones, para escalera recta de un tramo, fijada mediante atornillado en obra de fábrica.","ml",7.5]
[null,null,null,"HIERRO","INOX","ALU","MADERA","INTRO"]
[null,"Puerta de acceso al edificio, realizada en el material según designación, con medidas adecuadas al hueco existente y diseño según proyecto.","ud",0]
[null,null,null,"TUBO","INOX","MADERA"]
[8,"Pasamanos realizado en el material especificado, fijado mediante atornillado a obra.","ml",7.5]
[]
[]
["INSTALACIONES"]
[null,null,null,"NUMERO"]
[null,"Pulsador luz empotrado colocado a la altura que determine el nuevo nivel. Medida la unidad terminada y funcionando.","ud",0]
[null,null,null,"NUMERO"]
[null,"Punto de luz empotrado, instalado con cable de cobre con aislamiento nominal 750 V, de 1.5 mm2 de sección bajo tubo flexible corrugado de 13.5 mm. de diametro y downlight con lámpara tipo LED. Totalmente instalado y funcionado según REBT 2012.","ud"]
[null,null,null,"NUMERO"]
[null,"Suministro e instalación de detector de presencia para encendido de luces del patio.","ud"]
[null,null,null,"NUMERO"]
[null,"Interruptor crepuscular con célula fotoeléctrica integrada, grado de protección IP 55 e IK 07, 10 A, para mando automático de lámparas incandescentes de 600 W de potencia total instalada.","ud"]
[null,null,null,"NUMERO"]
[null,"Trabajos de desplazar las cajas de ELEMENTOS COMUNES, hasta una cota mas baja. Incluso p.p de pequeño material, conexionado y mano de obra. Totalmente instalado y comprobado.","ud",0]
[null,null,null,"NUMERO"]
[null,"Trabajos de desplazar las cajas de ICT, hasta una cota mas baja. Incluso p.p. de pequeño material, conexionado y mano de obra. Totalmente instalado y comprobado.","ud"]
[null,null,null,"NUMERO"]
[null,"Traslado de un módulo de la centralización de contadores eléctricos a la nueva posición donde permita la realización de las obras. Todo ello cumpliendo la normativa vigente, con material conexionado, cables, pequeño material y mano de obra. Medida la unidad totalmente terminada y funcionando.","ud"]
[null,null,null,"NUMERO"]
[null,"Traslado de UNA CENTRALIZACIÓN DE CONTADORES COMPLETA a la nueva posición donde permita la realización de las obras. Todo ello cumpliendo la normativa vigente, con material conexionado, cables, pequeño material y mano de obra. Medida la unidad totalmente terminada y funcionando.","ud",0]
[null,null,null,"NUMERO"]
[null,"Trabajos de desplazar una CGP, hasta nueva ubicación. Incluso p.p de pequeño material, conexionado y mano de obra. Totalmente instalado y comprobado.","ud"]
[null,null,null,"NUMERO"]
[null,"Modificaciones necesarias para adaptar la columna/contadores de agua a la nueva disposición. Sin cambio de ubicación de los mismos.","ud"]
[null,null,null,"NUMERO"]
[null,"Modificaciones necesarias para adaptar la columna/contadores de agua a la nueva disposición. Con cambio de ubicación de los mismos.","ud"]
[null,null,null,"INTRO"]
[null,"Suminstro e instalación de bomba con variador de frecuencia","ud"]
[null,null,null,"NUMERO"]
[null,"Trabajos para desplazar el interfono analógico a la nueva cota de acceso. Incluso p.p. de prolongación de cableado, etc.","ud",0]
[null,null,null,"PLACA CALLE","TELEFONOS"]
[null,"Suministro e instalación de portero analógico. Incluso p.p. de prolongación de cableado a la nueva posición.","ud"]
[null,null,null,"PLACA CALLE","B/N","COLOR"]
[null,"Suministro e instalación de videoportero. Incluso p.p. de prolongación de cableado a la nueva posición.","ud"]
[null,null,null,"BAJA","MEDIA","ALTA","INTRO","REMATES"]
[null,"Agrupación de buzones para interior, colocados sobre paramento vertical, a elegir de entre los propuestos a la Comunidad. ","ud",0,null,null,null,0]
[]
[]
["INST. PROTECCIÓN Y SEGURIDAD"]
[null,null,null,"NUMERO"]
[9,"Aparato de emergencia con lámpara fluorescente de 165 Lum, con caja de empotrar en material antichoque y autoextingible, con kit de fijación, de superficie (superficie máxima de 33m2), grado de protección IP 223, con base antichoque y difusor de metacrilato, señalización permanente con autonomía superior a 3hora con baterías herméticas recargables, alimentación a 220 V, de 34x13x10cm, incluso base de enchufe, etiqueta de señalización, replanteo, montaje, pequeño material y conexionado.","ud",1]
[null,null,null,"NUMERO"]
[10,"Extintor de polvo seco ABC de 6 Kg de capacidad, eficacia 21A-113B. Colocado en el exterior del recinto de riesgo especial y cad 15 m de recorrido, en cada planta, desde el origen de evacuación (si se actúa en dichas plantas). Incluso soporte, señalización según UNE 23033-1 y DBSI4 2 1 y colocación.","ud",1]
[null,null,null,"INTRO"]
[null,"SEÑALÉTICA","ud"]
[null,null,null,"CHAPA","MADERA","INTRO"]
[null,"Puerta cortafuegos homologada, EI2 60-C5, de una hoja, 800x2000 mm de luz y altura de paso, con cerradura de triangulo homologada y manivela de acceso.","ud",null,0]
[null,null,null,"CHAPA","MADERA","INTRO"]
[null,"Suministro y colocación de frente de armario de contadores de electricidad dividido en puertas de tamaño estandar, con resistencia al fuego EI2-C5 según DB-SI. Acabado  a elegir por la Comunidad de entre las muestras propuestas. Incluso p.p. de remates y acabados.","hoja"]
[null,null,null,"CHAPA","MADERA","INTRO"]
[null,"Suministro e instalación de puerta estándar, de 800x2050 mm, acabado a elegir de entre las muestras propuestas.","ud",null,0]
[null,null,null,"CHAPA","MADERA","INTRO"]
[null,"Suministro y colocación de frente de armario dividido en puertas de tamaño estandar, Acabado  a elegir por la Comunidad de entre las muestras propuestas. Incluso p.p. de remates y acabados.","hoja"]
[]
[]
["VARIOS"]
[null,null,null,"INTRO"]
[null,{"$f":"DATOS!B146","v":"…"},null,0]
[null,null,null,"INTRO"]
[null,{"$f":"DATOS!B148","v":".."}]
[null,null,null,"INTRO"]
[null,{"$f":"DATOS!B150","v":".."}]
[null,null,null,"INTRO"]
[null,{"$f":"DATOS!B152","v":".."}]
[null,null,null,"INTRO"]
[null,{"$f":"DATOS!B154","v":".."}]

{"sheet":"UNITARIOS","index":1,"n_rows":154,"n_cols":8,"rows_kept":154,"cut":false,"hidden":false,"merged":[]}
[]
[]
[]
[]
["DEMOLICIONES"]
[null,null,null,"BAJA","MEDIA","ALTA","INTRO"]
[null,"PAVIMENTO",null,9.5,10.5,11.5]
[null,null,null,"BAJA","MEDIA","ALTA","INTRO"]
[null,"CHAPADO",null,10.5,11.5,12.5]
[null,null,null,"BAJA","MEDIA","ALTA","INTRO"]
[null,"ALICATADO",null,9.5,10.5,11.5]
[null,null,null,"BAJA","MEDIA","ALTA","INTRO"]
[null,"PANELADO",null,6.9,9.9,10.9]
[null,null,null,"BAJA","MEDIA","ALTA","INTRO"]
[null,"ESPEJOS/DECORACIÓN",null,250,350,550]
[null,null,null,"RECUPERAR","NO RECUP."]
[null,"BARANDILLAS",null,120,85]
[null,null,null,"RECUPERAR","NO RECUP."]
[null,"PUERTAS",null,60,25]
[null,null,null,"BAJAR(COTA 0)","CEGADO+APERTURA (90º-180º)","QUITAR+NUEVA(FURE)"]
[null,"PUERTAS ASC.",null,450,550,350]
[null,null,null,"NO COMPLEJO","COMPLEJO"]
[null,"RELLENO",null,65,75]
[null,null,null,"HASTA 9 PELD",">9 PELD.","COMPLETA"]
[null,"ESCALERA",null,385,450,650]
[null,null,null,"CANTIDAD"]
[null,"PELDAÑOS",null,30]
[null,null,null,"M2"]
[null,"TABIQUES",null,12]
[null,null,null,"BAJA","MEDIA","ALTA","INTRO."]
[null,"TECHOS",null,4.4000000000000004,5.4,6.3]
[null,null,null,"DESMONTAJR","REUBICAR"]
[null,"BUZONES",null,60,100]
[null,null,null,"BAJAR","REHACER","IMPERM.","COMPLETO","INTRO"]
[null,"FOSO",null,1050,1600,600,1900]
[null,null,null,"CANCELAS","SANITARIOS","JARDINERAS","INTRO"]
[null,"OTROS",null,90,60,100]
[null,null,null,"BAJA","MEDIA","ALTA","INTRO."]
[null,"CONTENEDORES",null,130,145,150]
[]
[]
["ALBAÑILERÍA"]
[null,null,null,"BAJA","MEDIA","ALTA","INTRO"]
[null,"PARED SOPORTE",null,51,55,65]
[null,null,null,"HASTA 9 PELD",">9 PELD.","COMPLETA"]
[null,"ESCALERA",null,600,900,1250]
[null,null,null,"GENERAL","RESTRINGIDO"]
[null,"PELDAÑEADO",null,46,150]
[null,null,null,"BAJA","MEDIA","ALTA","INTRO"]
[null,"TABIQUE",null,45,48,50]
[null,null,null,"INTERIOR","EDIFICIO"]
[null,"COLOCAR PUERTA"]
[null,null,null,"<10%"]
[null,"RAMPA 10%",null,72]
[null,null,null,0.25]
[null,"RAMPA 25%",null,255]
[]
[]
[]
["REVESTIMIENTOS"]
[null,null,null,"BAJA","MEDIA","ALTA","INTRO"]
[null,"PAVIMENTO",null,75,88,99]
[null,null,null,"BAJA","MEDIA","ALTA","INTRO"]
[null,"CHAPADO",null,75,88,99]
[null,null,null,"BAJA","MEDIA","ALTA","INTRO"]
[null,"ALICATADO",null,50,65,75]
[null,null,null,"M2"]
[null,"SUELO INST.",null,50]
[null,null,null,"ud"]
[null,"PELDAÑO RECTANG","Ud",90]
[null,null,null,"ud"]
[null,"PELDAÑO COMP.","ud",120]
[null,null,null,"M2","M2"]
[null,"PANELADOS/ESPEJOS",null,36,30]
[null,null,null,"M2","M2"]
[null,"ENLUCIDO/ENFOSCADO",null,18,19]
[null,null,null,"PUERTA CUARTO","PUERTA ASC","FRENTE ASC(X PARADA)"]
[null,"LACADOS",null,120,150,200]
[null,null,null,"BAJA","MEDIA","ALTA","INTRO"]
[null,"PINTURA",null,350,450,550]
[]
[]
["CERRAMIENTOS Y PROTECCIONES"]
[null,null,null,"TUBO/BARROTE","TUBO/VIDRIO","INOX/BARROTE","INOX/VIDRIO","INTRO"]
[null,"BARANDILLA",null,130,193,250,301]
[null,null,null,"HIERRO","INOX","ALU","MADERA","INTRO"]
[null,"PUERTA EDIF.",null,1300,3400,2500,5500]
[null,null,null,"TUBO","INOX","MADERA"]
[null,"PASAMANOS",null,55,75,90]
[]
[]
["INSTALACIONES"]
[null,null,null,"NUMERO"]
[null,"PULSADOR",null,65]
[null,null,null,"NUMERO"]
[null,"DOWNLIGHT",null,80]
[null,null,null,"NUMERO"]
[null,"DETECTOR",null,80]
[null,null,null,"NUMERO"]
[null,"CRESPUSCULAR",null,80]
[null,null,null,"NUMERO"]
[null,"DESP. CAJAS COMÚN",null,250]
[null,null,null,"NUMERO"]
[null,"DESP. CAJAS ICT",null,250]
[null,null,null,"NUMERO"]
[null,"DESP. MODULOS",null,550]
[null,null,null,"NUMERO"]
[null,"DESP. CENT. ENTERA",null,1500]
[null,null,null,"NUMERO"]
[null,"DESPLAZAR CGP",null,630]
[null,null,null,"NUMERO"]
[null,"DESP. PUNTUAL AGUA",null,400]
[null,null,null,"NUMERO"]
[null,"DESP. CENTR. CONT.",null,650]
[null,null,null,"INTRO"]
[null,"BOMBAS"]
[null,null,null,"NUMERO"]
[null,"BAJAR INTERFONO",null,450]
[null,null,null,"PLACA CALLE","TELEFONOS"]
[null,"NUEVO INT. ANALG.",null,null,30]
[null,null,null,"PLACA CALLE","B/N","COLOR"]
[null,"NUEVO INT. DIGITAL",null,1650,80,145]
[null,null,null,"BAJA","MEDIA","ALTA","INTRO","REMATES"]
[null,"BUZONES",null,30,40,80,null,125]
[]
[]
["INST. PROTECCIÓN Y SEGURIDAD"]
[null,null,null,"NUMERO"]
[null,"LUMINARIA EMERG.",null,90]
[null,null,null,"NUMERO"]
[null,"EXTINTOR 21A-113B",null,75]
[null,null,null,"INTRO"]
[null,"SEÑALÉTICA",null,250]
[null,null,null,"CHAPA","MADERA","INTRO"]
[null,"PUERTA EI245-C5",null,350,465]
[null,null,null,"CHAPA","MADERA","INTRO"]
[null,"FRENTE ARM. EI245-C5",null,350,550]
[null,null,null,"CHAPA","MADERA","INTRO"]
[null,"PUERTA",null,250,350]
[null,null,null,"CHAPA","MADERA","INTRO"]
[null,"FRENTE ARMARIO",null,250,350]
[]
[]
["VARIOS"]
[null,null,null,"INTRO"]
[null,".."]
[null,null,null,"INTRO"]
[null,".."]
[null,null,null,"INTRO"]
[null,".."]
[null,null,null,"INTRO"]
[null,".."]
[null,null,null,"INTRO"]
[null,".."]

{"sheet":"PRESUPUESTO","index":2,"n_rows":159,"n_cols":9,"rows_kept":159,"cut":false,"hidden":false,"merged":[]}
[]
[null,{"$f":"DATOS!B2","v":"c/ AMERIQUES, 11 - EL PERELLÓ - SUECA"}]
[null,"TOTAL PRESUPUESTO",null,{"$f":"I159","v":3196}]
[null,"trabajos a realizar","citerio de medición","importe",null,null,null,null,"importe total"]
["DEMOLICIONES"]
[]
[null,"Demolición de pavimento existente en LA ZONA DE ACTUACIÓN, de baldosas de piedra natural, terrazo o gres, y picado del material de agarre, con medios manuales y carga manual de escombros sobre camión o contenedor.","m2",{"$f":"IF(DATOS!D7<>0,DATOS!D7*UNITARIOS!D7,\"\")","v":47.5},{"$f":"IF(DATOS!E7<>0,DATOS!E7*UNITARIOS!E7,\"\")","v":""},{"$f":"IF(DATOS!F7<>0,DATOS!F7*UNITARIOS!F7,\"\")","v":""},{"$f":"IF(DATOS!G7<>0,DATOS!G7,\"\")","v":""},null,{"$f":"SUM(D7:H7)","v":47.5}]
[]
[null,"Demolición de chapado de placas de piedra natural y picado de la capa base de mortero, con medios manuales, y carga manual de escombros sobre camión o contenedor.","m2",{"$f":"IF(DATOS!D9<>0,DATOS!D9*UNITARIOS!D9,\"\")","v":""},{"$f":"IF(DATOS!E9<>0,DATOS!E9*UNITARIOS!E9,\"\")","v":""},{"$f":"IF(DATOS!F9<>0,DATOS!F9*UNITARIOS!F9,\"\")","v":""},{"$f":"IF(DATOS!G9<>0,DATOS!G9,\"\")","v":""},null,{"$f":"SUM(D9:H9)","v":0}]
[]
[null,"Demolición de alicatado de azulejo y picado de la capa base de mortero, con medios manuales, y carga manual de escombros sobre camión o contenedor.","m2",{"$f":"IF(DATOS!D11<>0,DATOS!D11*UNITARIOS!D11,\"\")","v":""},{"$f":"IF(DATOS!E11<>0,DATOS!E11*UNITARIOS!E11,\"\")","v":""},{"$f":"IF(DATOS!F11<>0,DATOS!F11*UNITARIOS!F11,\"\")","v":""},{"$f":"IF(DATOS!G11<>0,DATOS!G11,\"\")","v":""},null,{"$f":"SUM(D11:H11)","v":0}]
[]
[null,"Levantado de panelado de madera en paredes existentes en zaguan","m2",{"$f":"IF(DATOS!D13<>0,DATOS!D13*UNITARIOS!D13,\"\")","v":""},{"$f":"IF(DATOS!E13<>0,DATOS!E13*UNITARIOS!E13,\"\")","v":""},{"$f":"IF(DATOS!F13<>0,DATOS!F13*UNITARIOS!F13,\"\")","v":""},{"$f":"IF(DATOS!G13<>0,DATOS!G13,\"\")","v":""},null,{"$f":"SUM(D13:H13)","v":0}]
[]
[null,"Desmontaje y retirada de espejos/decoración existentes en paredes. Sin transporte a vertedero.","m2",{"$f":"IF(DATOS!D15<>0,DATOS!D15*UNITARIOS!D15,\"\")","v":""},{"$f":"IF(DATOS!E15<>0,DATOS!E15*UNITARIOS!E15,\"\")","v":""},{"$f":"IF(DATOS!F15<>0,DATOS!F15*UNITARIOS!F15,\"\")","v":""},{"$f":"IF(DATOS!G15<>0,DATOS!G15,\"\")","v":""},null,{"$f":"SUM(D15:H15)","v":0}]
[]
[null,"Levantado de barandillas y pasamanos metálicos, con retirada de escombros y carga, a pie de obra.","ud",{"$f":"IF(DATOS!D17<>0,DATOS!D17*UNITARIOS!D17,\"\")","v":""},{"$f":"IF(DATOS!E17<>0,DATOS!E17*UNITARIOS!E17,\"\")","v":""},null,null,null,{"$f":"SUM(D17:H17)","v":0}]
[null,null,null,"RECUPERAR","NO RECUP."]
[null,"Desmontaje de hoja de puerta interior de paso de carpintería de madera, galces, tapajuntas y herrajes, con medios manuales y carga manual del material desmontado sobre camión o contenedor.","ud",{"$f":"IF(DATOS!D19<>0,DATOS!D19*UNITARIOS!D19,\"\")","v":""},{"$f":"IF(DATOS!E19<>0,DATOS!E19*UNITARIOS!E19,\"\")","v":""},null,null,null,{"$f":"SUM(D19:H19)","v":0}]
[null,null,null,"BAJAR(COTA 0)","CEGADO+APERTURA (90º-180º)","QUITAR+NUEVA(FURE)"]
[null,"Levantado, recolocación, cegado de hueco y colocación de puertas de ascensor, según tipo de operación. Incluso p.p. de remates. Medida la unidad terminada y funcionando.","ud",{"$f":"IF(DATOS!D21<>0,DATOS!D21*UNITARIOS!D21,\"\")","v":""},{"$f":"IF(DATOS!E21<>0,DATOS!E21*UNITARIOS!E21,\"\")","v":""},{"$f":"IF(DATOS!F21<>0,DATOS!F21*UNITARIOS!F21,\"\")","v":""},null,null,{"$f":"SUM(D21:H21)","v":0}]
[]
[null,"Demolición de relleno de zaguan,escalera,zona perimetral del ascensor, hasta llegar a nivel de acceso, ","m3",{"$f":"IF(DATOS!D23<>0,DATOS!D23*UNITARIOS!D23,\"\")","v":""},{"$f":"IF(DATOS!E23<>0,DATOS!E23*UNITARIOS!E23,\"\")","v":""},null,null,null,{"$f":"SUM(D23:H23)","v":0}]
[]
[null,"Demolición parte de escalera a remodelar. Incluso retirada de escombro a pie de carga.","ud",{"$f":"IF(DATOS!D25<>0,DATOS!D25*UNITARIOS!D25,\"\")","v":""},{"$f":"IF(DATOS!E25<>0,DATOS!E25*UNITARIOS!E25,\"\")","v":""},{"$f":"IF(DATOS!F25<>0,DATOS!F25*UNITARIOS!F25,\"\")","v":""},null,null,{"$f":"SUM(D25:H25)","v":0}]
[]
[null,"Demolición de peldañeado existente","ud",{"$f":"IF(DATOS!D27<>0,DATOS!D27*UNITARIOS!D27,\"\")","v":""},null,null,null,null,{"$f":"SUM(D27:H27)","v":0}]
[]
[null,"Demolición de tabicones de ladrillo hueco doble, por medios manuales, incluso limpieza y retirada de escombros a pie de carga, sin transporte al vertedero y con p.p. de medios auxiliares.","m2",{"$f":"IF(DATOS!D29<>0,DATOS!D29*UNITARIOS!D29,\"\")","v":""},null,null,null,null,{"$f":"SUM(D29:H29)","v":0}]
[]
[null,"Demolición de falsos techos continuos de placas de escayola, yeso, corcho o material similar, por medios manuales, incluso limpieza y retirada de escombros a pie de carga, sin transporte al vertedero y con p.p. de medios auxiliares.","m2",{"$f":"IF(DATOS!D31<>0,DATOS!D31*UNITARIOS!D31,\"\")","v":""},{"$f":"IF(DATOS!E31<>0,DATOS!E31*UNITARIOS!E31,\"\")","v":""},{"$f":"IF(DATOS!F31<>0,DATOS!F31*UNITARIOS!F31,\"\")","v":""},{"$f":"IF(DATOS!G31<>0,DATOS!G31,\"\")","v":""},null,{"$f":"SUM(D31:H31)","v":0}]
[null,null,null,"DESMONTAR","REUBICAR"]
[null,"Desmontaje de buzones, con retirada a vertedero",null,{"$f":"IF(DATOS!D33<>0,DATOS!D33*UNITARIOS!D33,\"\")","v":""},{"$f":"IF(DATOS!E33<>0,DATOS!E33*UNITARIOS!E33,\"\")","v":""},null,null,null,{"$f":"SUM(D33:H33)","v":0}]
[]
[null,"Realización de foso necesario para cumplir normativa.","ud",{"$f":"IF(DATOS!D35<>0,DATOS!D35*UNITARIOS!D35,\"\")","v":""},{"$f":"IF(DATOS!E35<>0,DATOS!E35*UNITARIOS!E35,\"\")","v":""},{"$f":"IF(DATOS!F35<>0,DATOS!F35*UNITARIOS!F35,\"\")","v":""},{"$f":"IF(DATOS!G35<>0,DATOS!G35*UNITARIOS!G35,\"\")","v":""},{"$f":"IF(DATOS!H35<>0,DATOS!H35,\"\")","v":""},{"$f":"SUM(D35:H35)","v":0}]
[null,null,null,"CANCELAS","SANITARIOS","JARDINERAS","INTRO"]
[null,"Demolición de otros elementos existentes en la zona de actuación. Sin recuperación del material.","ud",{"$f":"IF(DATOS!D37<>0,DATOS!D37*UNITARIOS!D37,\"\")","v":90},{"$f":"IF(DATOS!E37<>0,DATOS!E37*UNITARIOS!E37,\"\")","v":""},{"$f":"IF(DATOS!F37<>0,DATOS!F37*UNITARIOS!F37,\"\")","v":""},{"$f":"IF(DATOS!G37<>0,DATOS!G37,\"\")","v":""},null,{"$f":"SUM(D37:H37)","v":90}]
[]
[null,"Alquiler de contenedor para retirada de escombros a vertedero. Incluso p.p. de tasas y permisos necesarios.","ud",{"$f":"IF(DATOS!D39<>0,DATOS!D39*UNITARIOS!D39,\"\")","v":""},{"$f":"IF(DATOS!E39<>0,DATOS!E39*UNITARIOS!E39,\"\")","v":""},{"$f":"IF(DATOS!F39<>0,DATOS!F39*UNITARIOS!F39,\"\")","v":""},{"$f":"IF(DATOS!G39<>0,DATOS!G39,\"\")","v":""},null,{"$f":"SUM(D39:H39)","v":0}]
[]
[]
["ALBAÑILERÍA"]
[]
[null,"Construccion de pared soporte con ladrillo perforado 25x11.5x7 cm para soporte de escalera, tramo de escalera o zona recortada.","m2",{"$f":"IF(DATOS!D44<>0,DATOS!D44*UNITARIOS!D44,\"\")","v":""},{"$f":"IF(DATOS!E44<>0,DATOS!E44*UNITARIOS!E44,\"\")","v":""},{"$f":"IF(DATOS!F44<>0,DATOS!F44*UNITARIOS!F44,\"\")","v":""},{"$f":"IF(DATOS!G44<>0,DATOS!G44,\"\")","v":""},null,{"$f":"SUM(D44:H44)","v":0}]
[]
[null,"Bóveda de escalera, ladrillo hueco sencillo, 24x11,5x4 cm, dos hojas.","ud",{"$f":"IF(DATOS!D46<>0,DATOS!D46*UNITARIOS!D46,\"\")","v":""},{"$f":"IF(DATOS!E46<>0,DATOS!E46*UNITARIOS!E46,\"\")","v":""},{"$f":"IF(DATOS!F46<>0,DATOS!F46*UNITARIOS!F46,\"\")","v":""},null,null,{"$f":"SUM(D46:H46)","v":0}]
[null,null,null,"GENERAL","RESTRINGIDO"]
[null,"Formación de peldaño con ladrillos huecos de 25x12x4cm, recibido con mortero de cemento, incluso replanteo, nivelación, p.p. de mermas, roturas, humedecido de las piezas y limpieza. Medida la unidad terminada.","ud",{"$f":"IF(DATOS!D48<>0,DATOS!D48*UNITARIOS!D48,\"\")","v":""},{"$f":"IF(DATOS!E48<>0,DATOS!E48*UNITARIOS!E48,\"\")","v":""},null,null,null,{"$f":"SUM(D48:H48)","v":0}]
[]
[null,"Hoja  de cerramiento , de 7/11 cm de espesor de fábrica de ladrillo cerámico hueco doble/triple, para revestir, recibida con mortero de cemento M-5.","m2",{"$f":"IF(DATOS!D50<>0,DATOS!D50*UNITARIOS!D50,\"\")","v":""},{"$f":"IF(DATOS!E50<>0,DATOS!E50*UNITARIOS!E50,\"\")","v":""},{"$f":"IF(DATOS!F50<>0,DATOS!F50*UNITARIOS!F50,\"\")","v":""},{"$f":"IF(DATOS!G50<>0,DATOS!G50,\"\")","v":""},null,{"$f":"SUM(D50:H50)","v":0}]
[null,null,null,"INTERIOR","EDIFICIO"]
[null,"Colocacion de puerta con formacion de lindares, aristas,terminacion de cerramiento superior de ladrillo, totalmente lucido y terminado. (no incluida la puerta)","ud",{"$f":"IF(DATOS!D52<>0,DATOS!D52*UNITARIOS!D52,\"\")","v":""},{"$f":"IF(DATOS!E52<>0,DATOS!E52*UNITARIOS!E52,\"\")","v":""},null,null,null,{"$f":"SUM(D52:H52)","v":0}]
[null,null,null,"<10%"]
[null,"Formación de rampa pendiente máxima inferior al 10% ","ud",{"$f":"IF(DATOS!D54<>0,DATOS!D54*UNITARIOS!D54,\"\")","v":576},null,null,null,null,{"$f":"SUM(D54:G54)","v":576}]
[null,null,null,0.25]
[null,"Formación de rampa pendiente máxima del 25%, con desnivel máximo de 5 cm. según DB SUA","ud",{"$f":"IF(DATOS!D56<>0,DATOS!D56*UNITARIOS!D56,\"\")","v":""},null,null,null,null,{"$f":"SUM(D56:G56)","v":0}]
[]
[]
[]
["REVESTIMIENTOS"]
[]
[null,"Solado de baldosas de mármol nacional, en FORMATO COMERCIAL 60x30x2 cm, en modelo y color a elegir por la Comunidad de entre las muestras propuestas, para pavimentar el suelo del zaguán, en las zonas recortadas y/o vaciadas así como los rellanos afectados y las rampas que se hubieran podido crear o suprimir. Acabado pulido, recibidas con adhesivo cementoso mejorado, C2 y rejuntadas con mortero de juntas cementoso, CG1, para junta mínima (entre 1,5 y 3 mm), con la misma tonalidad de las piezas. Incluso mano de obra, material de agarre y rejunte.","m2",{"$f":"IF(DATOS!D62<>0,DATOS!D62*UNITARIOS!D62,\"\")","v":""},{"$f":"IF(DATOS!E62<>0,DATOS!E62*UNITARIOS!E62,\"\")","v":""},{"$f":"IF(DATOS!F62<>0,DATOS!F62*UNITARIOS!F62,\"\")","v":""},{"$f":"IF(DATOS!G62<>0,DATOS!G62,\"\")","v":""},null,{"$f":"SUM(D62:H62)","v":0}]
[]
[null,"Suministro y colocación de mármol nacional, en FORMATO COMERCIAL, en modelo y color a elegir por la Comunidad de entre las muestras propuestas, para chapar las paredes del zaguán afectadas por las obras.  Incluso mano de obra, material de agarre y rejunte. Totalmente colocado y nivelado, con pulido y abrillantado de taller.","m2",{"$f":"IF(DATOS!D64<>0,DATOS!D64*UNITARIOS!D64,\"\")","v":""},{"$f":"IF(DATOS!E64<>0,DATOS!E64*UNITARIOS!E64,\"\")","v":""},{"$f":"IF(DATOS!F64<>0,DATOS!F64*UNITARIOS!F64,\"\")","v":""},{"$f":"IF(DATOS!G64<>0,DATOS!G64,\"\")","v":""},null,{"$f":"SUM(D64:H64)","v":0}]
[]
[null,"Alicatado con gres porcelánico pulido, 1/0/-/-, 31,6x59,2 cm, 18 €/m², colocado sobre una superficie soporte de mortero de cemento u hormigón, en paramentos interiores, mediante adhesivo cementoso normal, C1 gris, con doble encolado, con junta abierta (separación entre 3 y 15 mm); cantoneras de PVC.","m2",{"$f":"IF(DATOS!D66<>0,DATOS!D66*UNITARIOS!D66,\"\")","v":""},{"$f":"IF(DATOS!E66<>0,DATOS!E66*UNITARIOS!E66,\"\")","v":""},{"$f":"IF(DATOS!F66<>0,DATOS!F66*UNITARIOS!F66,\"\")","v":""},{"$f":"IF(DATOS!G66<>0,DATOS!G66,\"\")","v":""},null,{"$f":"SUM(D66:H66)","v":0}]
[null,null,null,"M2"]
[null,"Solado de baldosas cerámicas de gres porcelánico, de 60x30 cm, a elegir de entre las muestras propuestas, recibidas con mortero de cemento M-5 de 3 cm de espesor y rejuntadas con lechada de cemento blanco, L, BL-V 22,5, para junta mínima (entre 1,5 y 3 mm), coloreada con la misma tonalidad de las piezas.","m2",{"$f":"IF(DATOS!D68<>0,DATOS!D68*UNITARIOS!D68,\"\")","v":400},null,null,null,null,{"$f":"SUM(D68:H68)","v":400}]
[null,null,null,"ud"]
[null,"Peldaño de mármol nacional, a elegir por la propiedad de entre los propuestos, de 3cm de espesor, FORMA RECTANGULAR, SIN BOCEL y tabica de 2 cm de espesor. Incluso p.p. de zanquín del mismo material de 7cm, recibido con mortero de cemento y arena de miga 1:6. Incluso rejuntado y limpieza.","Ud",{"$f":"IF(DATOS!D70<>0,DATOS!D70*UNITARIOS!D70,\"\")","v":""}]
[null,null,null,"ud"]
[null,"Peldaño de mármol nacional, a elegir por la propiedad de entre los propuestos, de 3cm de espesor, CON FORMAS ESPECIALES, SIN BOCEL,  aplantillados y tabica de 2 cm de espesor, p.p. de zanquín del mismo material de 7cm, recibido con mortero de cemento y arena de miga 1/6, incluso rejuntado y limpieza.","ud",{"$f":"IF(DATOS!D72<>0,DATOS!D72*UNITARIOS!D72,\"\")","v":""}]
[null,null,null,"M2","M2"]
[null,"Suministro e instalación de panelado de madera/espejo, pegado a rastreles, a elegir por la comunidad de entre las muestras propuestas","m2",{"$f":"IF(DATOS!D74<>0,DATOS!D74*UNITARIOS!D74,\"\")","v":""},{"$f":"IF(DATOS!E74<>0,DATOS!E74*UNITARIOS!E74,\"\")","v":""},null,null,null,{"$f":"SUM(D74:H74)","v":0}]
[null,null,null,"M2","M2"]
[null,"Enlucido de yeso de aplicación en capa fina C6 en una superficie previamente guarnecida, sobre paramento vertical, de hasta 3 m de altura./Enfoscado de cemento, a buena vista, aplicado sobre un paramento vertical interior, hasta 3 m de altura, acabado superficial fratasado, con mortero de cemento M-5.","m2",{"$f":"IF(DATOS!D76<>0,DATOS!D76*UNITARIOS!D76,\"\")","v":180},{"$f":"IF(DATOS!E76<>0,DATOS!E76*UNITARIOS!E76,\"\")","v":""},null,null,null,{"$f":"SUM(D76:H76)","v":180}]
[null,null,null,"PUERTA CUARTO","PUERTA ASC","FRENTE ASC(X PARADA)"]
[null,"Lacado de puerta en color a elegir por la Comunidad de entre las muestras propuestas.","ud",{"$f":"IF(DATOS!D78<>0,DATOS!D78*UNITARIOS!D78,\"\")","v":""},{"$f":"IF(DATOS!E78<>0,DATOS!E78*UNITARIOS!E78,\"\")","v":""},{"$f":"IF(DATOS!F78<>0,DATOS!F78*UNITARIOS!F78,\"\")","v":""},null,null,{"$f":"SUM(D78:H78)","v":0}]
[]
[null,"Pintura plástica lisa mate color, en interiores,en paramentos horizontales y verticales, dos manos. Incluso lijado, mano de imprimación con plástico diluído, plastecido, lijado y acabado.","ud",{"$f":"IF(DATOS!D80<>0,DATOS!D80*UNITARIOS!D80,\"\")","v":350},{"$f":"IF(DATOS!E80<>0,DATOS!E80*UNITARIOS!E80,\"\")","v":""},{"$f":"IF(DATOS!F80<>0,DATOS!F80*UNITARIOS!F80,\"\")","v":""},{"$f":"IF(DATOS!G80<>0,DATOS!G80,\"\")","v":""},null,{"$f":"SUM(D80:H80)","v":350}]
[]
[]
["CERRAMIENTOS Y PROTECCIONES"]
[null,null,null,"TUBO/BARROTE","TUBO/VIDRIO","INOX/BARROTE","INOX/VIDRIO","INTRO"]
[null,"Barandilla metálica de 100 cm de altura, diseño según especificaciones, para escalera recta de un tramo, fijada mediante atornillado en obra de fábrica.","ml",{"$f":"IF(DATOS!D85<>0,DATOS!D85*UNITARIOS!D85,\"\")","v":975},{"$f":"IF(DATOS!E85<>0,DATOS!E85*UNITARIOS!E85,\"\")","v":""},{"$f":"IF(DATOS!F85<>0,DATOS!F85*UNITARIOS!F85,\"\")","v":""},{"$f":"IF(DATOS!G85<>0,DATOS!G85*UNITARIOS!G85,\"\")","v":""},{"$f":"IF(DATOS!H85<>0,DATOS!H85,\"\")","v":""},{"$f":"SUM(D85:H85)","v":975}]
[null,null,null,"HIERRO","INOX","ALU","MADERA","INTRO"]
[null,"Puerta de acceso al edificio, realizada en el material según designación, con medidas adecuadas al hueco existente y diseño según proyecto.","ud",{"$f":"IF(DATOS!D87<>0,DATOS!D87*UNITARIOS!D87,\"\")","v":""},{"$f":"IF(DATOS!E87<>0,DATOS!E87*UNITARIOS!E87,\"\")","v":""},{"$f":"IF(DATOS!F87<>0,DATOS!F87*UNITARIOS!F87,\"\")","v":""},{"$f":"IF(DATOS!G87<>0,DATOS!G87*UNITARIOS!G87,\"\")","v":""},{"$f":"IF(DATOS!H87<>0,DATOS!H87,\"\")","v":""},{"$f":"SUM(D87:H87)","v":0}]
[null,null,null,"TUBO","INOX","MADERA"]
[null,"Pasamanos realizado en el material especificado, fijado mediante atornillado a obra.","ml",{"$f":"IF(DATOS!D89<>0,DATOS!D89*UNITARIOS!D89,\"\")","v":412.5},{"$f":"IF(DATOS!E89<>0,DATOS!E89*UNITARIOS!E89,\"\")","v":""},{"$f":"IF(DATOS!F89<>0,DATOS!F89*UNITARIOS!F89,\"\")","v":""},null,null,{"$f":"SUM(D89:H89)","v":412.5}]
[]
[]
["INSTALACIONES"]
[]
[null,"Pulsador luz empotrado colocado a la altura que determine el nuevo nivel. Medida la unidad terminada y funcionando.","ud",{"$f":"IF(DATOS!D94<>0,DATOS!D94*UNITARIOS!D94,\"\")","v":""},null,null,null,null,{"$f":"SUM(D94:H94)","v":0}]
[]
[null,"Punto de luz empotrado, instalado con cable de cobre con aislamiento nominal 750 V, de 1.5 mm2 de sección bajo tubo flexible corrugado de 13.5 mm. de diametro y downlight con lámpara tipo LED. Totalmente instalado y funcionado según REBT 2012.","ud",{"$f":"IF(DATOS!D96<>0,DATOS!D96*UNITARIOS!D96,\"\")","v":""},null,null,null,null,{"$f":"SUM(D96:H96)","v":0}]
[]
[null,"Suministro e instalación de detector de presencia para encendido de luces del patio.","ud",{"$f":"IF(DATOS!D98<>0,DATOS!D98*UNITARIOS!D98,\"\")","v":""},null,null,null,null,{"$f":"SUM(D98:H98)","v":0}]
[]
[null,"Interruptor crepuscular con célula fotoeléctrica integrada, grado de protección IP 55 e IK 07, 10 A, para mando automático de lámparas incandescentes de 600 W de potencia total instalada.","ud",{"$f":"IF(DATOS!D100<>0,DATOS!D100*UNITARIOS!D100,\"\")","v":""},null,null,null,null,{"$f":"SUM(D100:H100)","v":0}]
[]
[null,"Trabajos de desplazar las cajas de ELEMENTOS COMUNES, hasta una cota mas baja. Incluso p.p de pequeño material, conexionado y mano de obra. Totalmente instalado y comprobado.","ud",{"$f":"IF(DATOS!D102<>0,DATOS!D102*UNITARIOS!D102,\"\")","v":""},null,null,null,null,{"$f":"SUM(D102:H102)","v":0}]
[]
[null,"Trabajos de desplazar las cajas de ICT, hasta una cota mas baja. Incluso p.p. de pequeño material, conexionado y mano de obra. Totalmente instalado y comprobado.","ud",{"$f":"IF(DATOS!D104<>0,DATOS!D104*UNITARIOS!D104,\"\")","v":""},null,null,null,null,{"$f":"SUM(D104:H104)","v":0}]
[]
[null,"Traslado de un módulo de la centralización de contadores eléctricos a la nueva posición donde permita la realización de las obras. Todo ello cumpliendo la normativa vigente, con material conexionado, cables, pequeño material y mano de obra. Medida la unidad totalmente terminada y funcionando.","ud",{"$f":"IF(DATOS!D106<>0,DATOS!D106*UNITARIOS!D106,\"\")","v":""},null,null,null,null,{"$f":"SUM(D106:H106)","v":0}]
[]
[null,"Traslado de UNA CENTRALIZACIÓN DE CONTADORES COMPLETA a la nueva posición donde permita la realización de las obras. Todo ello cumpliendo la normativa vigente, con material conexionado, cables, pequeño material y mano de obra. Medida la unidad totalmente terminada y funcionando.","ud",{"$f":"IF(DATOS!D108<>0,DATOS!D108*UNITARIOS!D108,\"\")","v":""},null,null,null,null,{"$f":"SUM(D108:H108)","v":0}]
[]
[null,"Trabajos de desplazar una CGP, hasta nueva ubicación. Incluso p.p de pequeño material, conexionado y mano de obra. Totalmente instalado y comprobado.","ud",{"$f":"IF(DATOS!D110<>0,DATOS!D110*UNITARIOS!D110,\"\")","v":""},null,null,null,null,{"$f":"SUM(D110:H110)","v":0}]
[]
[null,"Modificaciones necesarias para adaptar la columna/contadores de agua a la nueva disposición. Sin cambio de ubicación de los mismos.","ud",{"$f":"IF(DATOS!D112<>0,DATOS!D112*UNITARIOS!D112,\"\")","v":""},null,null,null,null,{"$f":"SUM(D112:H112)","v":0}]
[]
[null,"Modificaciones necesarias para adaptar la columna/contadores de agua a la nueva disposición. Con cambio de ubicación de los mismos.","ud",{"$f":"IF(DATOS!D114<>0,DATOS!D114*UNITARIOS!D114,\"\")","v":""},null,null,null,null,{"$f":"SUM(D114:H114)","v":0}]
[]
[null,"Suminstro e instalación de bomba con variador de frecuencia","ud",{"$f":"DATOS!D116","v":0},null,null,null,null,{"$f":"SUM(D116:H116)","v":0}]
[]
[null,"Trabajos para desplazar el interfono analógico a la nueva cota de acceso. Incluso p.p. de prolongación de cableado, etc.","ud",{"$f":"IF(DATOS!D118<>0,DATOS!D118*UNITARIOS!D118,\"\")","v":""},null,null,null,null,{"$f":"SUM(D118:H118)","v":0}]
[null,null,null,"PLACA CALLE","TELEFONOS"]
[null,"Suministro e instalación de portero analógico. Incluso p.p. de prolongación de cableado a la nueva posición.","ud",{"$f":"IF(DATOS!D120<>0,DATOS!D120*UNITARIOS!D120,\"\")","v":""},{"$f":"IF(DATOS!E120<>0,DATOS!E120*UNITARIOS!E120,\"\")","v":""},null,null,null,{"$f":"SUM(D120:H120)","v":0}]
[null,null,null,"PLACA CALLE","B/N","COLOR"]
[null,"Suministro e instalación de videoportero. Incluso p.p. de prolongación de cableado a la nueva posición.","ud",{"$f":"IF(DATOS!D122<>0,DATOS!D122*UNITARIOS!D122,\"\")","v":""},{"$f":"IF(DATOS!E122<>0,DATOS!E122*UNITARIOS!E122,\"\")","v":""},{"$f":"IF(DATOS!F122<>0,DATOS!F122*UNITARIOS!F122,\"\")","v":""},null,null,{"$f":"SUM(D122:H122)","v":0}]
[null,null,null,null,null,null,null,"REMATES"]
[null,"Agrupación de buzones para interior, colocados sobre paramento vertical, a elegir de entre los propuestos a la Comunidad. ","ud",{"$f":"IF(DATOS!D124<>0,DATOS!D124*UNITARIOS!D124,\"\")","v":""},{"$f":"IF(DATOS!E124<>0,DATOS!E124*UNITARIOS!E124,\"\")","v":""},{"$f":"IF(DATOS!F124<>0,DATOS!F124*UNITARIOS!F124,\"\")","v":""},{"$f":"IF(DATOS!G124<>0,DATOS!G124,\"\")","v":""},{"$f":"IF(DATOS!H124<>0,DATOS!H124*UNITARIOS!H124,\"\")","v":""},{"$f":"SUM(D124:H124)","v":0}]
[]
[]
["INST. PROTECCIÓN Y SEGURIDAD"]
[]
[null,"Aparato de emergencia con lámpara fluorescente de 165 Lum, con caja de empotrar en material antichoque y autoextingible, con kit de fijación, de superficie (superficie máxima de 33m2), grado de protección IP 223, con base antichoque y difusor de metacrilato, señalización permanente con autonomía superior a 3hora con baterías herméticas recargables, alimentación a 220 V, de 34x13x10cm, incluso base de enchufe, etiqueta de señalización, replanteo, montaje, pequeño material y conexionado.","ud",{"$f":"IF(DATOS!D129<>0,DATOS!D129*UNITARIOS!D129,\"\")","v":90},null,null,null,null,{"$f":"SUM(D129:H129)","v":90}]
[]
[null,"Extintor de polvo seco ABC de 6 Kg de capacidad, eficacia 21A-113B. Colocado en el exterior del recinto de riesgo especial y cad 15 m de recorrido, en cada planta, desde el origen de evacuación (si se actúa en dichas plantas). Incluso soporte, señalización según UNE 23033-1 y DBSI4 2 1 y colocación.","ud",{"$f":"IF(DATOS!D131<>0,DATOS!D131*UNITARIOS!D131,\"\")","v":75},null,null,null,null,{"$f":"SUM(D131:H131)","v":75}]
[]
[null,"SEÑALÉTICA","ud",{"$f":"IF(DATOS!D133<>0,DATOS!D133*UNITARIOS!D133,\"\")","v":""},null,null,null,null,{"$f":"SUM(D133:H133)","v":0}]
[null,null,null,"CHAPA","MADERA"]
[null,"Puerta cortafuegos homologada, EI2 60-C5, de una hoja, 800x2000 mm de luz y altura de paso, con cerradura de triangulo homologada y manivela de acceso.","ud",{"$f":"IF(DATOS!D135<>0,DATOS!D135*UNITARIOS!D135,\"\")","v":""},{"$f":"IF(DATOS!E135<>0,DATOS!E135*UNITARIOS!E135,\"\")","v":""},{"$f":"IF(DATOS!F135<>0,DATOS!F135,\"\")","v":""},null,null,{"$f":"SUM(D135:H135)","v":0}]
[null,null,null,"CHAPA","MADERA"]
[null,"Suministro y colocación de frente de armario de contadores de electricidad dividido en puertas de tamaño estandar, con resistencia al fuego EI2-C5 según DB-SI. Acabado  a elegir por la Comunidad de entre las muestras propuestas. Incluso p.p. de remates y acabados.","hoja",{"$f":"IF(DATOS!D137<>0,DATOS!D137*UNITARIOS!D137,\"\")","v":""},{"$f":"IF(DATOS!E137<>0,DATOS!E137*UNITARIOS!E137,\"\")","v":""},{"$f":"IF(DATOS!F137<>0,DATOS!F137,\"\")","v":""},null,null,{"$f":"SUM(D137:H137)","v":0}]
[null,null,null,"CHAPA","MADERA"]
[null,"Suministro e instalación de puerta estándar, de 800x2050 mm, acabado a elegir de entre las muestras propuestas.","ud",{"$f":"IF(DATOS!D139<>0,DATOS!D139*UNITARIOS!D139,\"\")","v":""},{"$f":"IF(DATOS!E139<>0,DATOS!E139*UNITARIOS!E139,\"\")","v":""},{"$f":"IF(DATOS!F139<>0,DATOS!F139,\"\")","v":""},null,null,{"$f":"SUM(D139:H139)","v":0}]
[null,null,null,"CHAPA","MADERA"]
[null,"Suministro y colocación de frente de armario dividido en puertas de tamaño estandar, Acabado  a elegir por la Comunidad de entre las muestras propuestas. Incluso p.p. de remates y acabados.","hoja",{"$f":"IF(DATOS!D141<>0,DATOS!D141*UNITARIOS!D141,\"\")","v":""},{"$f":"IF(DATOS!E141<>0,DATOS!E141*UNITARIOS!E141,\"\")","v":""},{"$f":"IF(DATOS!F141<>0,DATOS!F141,\"\")","v":""},null,null,{"$f":"SUM(D141:H141)","v":0}]
[]
[]
["VARIOS"]
[]
[null,{"$f":"DATOS!B146","v":"…"},null,{"$f":"IF(DATOS!D146<>0,DATOS!D146,\"\")","v":""},null,null,null,null,{"$f":"SUM(D146:H146)","v":0}]
[]
[null,{"$f":"DATOS!B148","v":".."},null,{"$f":"IF(DATOS!D148<>0,DATOS!D148,\"\")","v":""},null,null,null,null,{"$f":"SUM(D148:H148)","v":0}]
[]
[null,{"$f":"DATOS!B150","v":".."},null,{"$f":"IF(DATOS!D150<>0,DATOS!D150,\"\")","v":""},null,null,null,null,{"$f":"SUM(D150:H150)","v":0}]
[]
[null,{"$f":"DATOS!B152","v":".."},null,{"$f":"IF(DATOS!D152<>0,DATOS!D152,\"\")","v":""},null,null,null,null,{"$f":"SUM(D152:H152)","v":0}]
[]
[null,{"$f":"DATOS!B154","v":".."},null,{"$f":"IF(DATOS!D154<>0,DATOS!D154,\"\")","v":""},null,null,null,null,{"$f":"SUM(D154:H154)","v":0}]
[]
[]
[]
[]
[null,null,null,null,"TOTAL PRESUPUESTO",null,null,null,{"$f":"SUM(I7:I154)","v":3196}]

{"sheet":"MEDICION","index":3,"n_rows":33,"n_cols":8,"rows_kept":33,"cut":false,"hidden":false,"merged":[]}
[]
[{"$f":"DATOS!B2","v":"c/ AMERIQUES, 11 - EL PERELLÓ - SUECA"}]
[]
[]
["ORDEN","DESCRIPCIÓN","UNIDAD",null,null,null,null,"MEDICIÓN"]
[]
[{"$f":"IFERROR(VLOOKUP(Hoja2!G2,DATOS!$A$7:$G$202,1,FALSE),\"\")","v":1},{"$f":"IFERROR(VLOOKUP(Hoja2!G2,DATOS!$A$7:$G$202,2,FALSE),\"\")","v":"Demolición de pavimento existente en LA ZONA DE ACTUACIÓN, de baldosas de piedra natural, terrazo o gres, y picado del material de agarre, con medios manuales y carga manual de escombros sobre camión o contenedor."},{"$f":"IFERROR((VLOOKUP(Hoja2!G2,DATOS!$A$7:$G$202,3,FALSE)),\"\")","v":"m2"},{"$f":"IFERROR(IF((VLOOKUP(Hoja2!G2,DATOS!$A$7:$G$202,4,FALSE))<>0,(IFERROR((VLOOKUP(Hoja2!G2,DATOS!$A$7:$G$202,4,FALSE)),\"\")),\"\"),\"\")","v":5},{"$f":"IFERROR(IF((VLOOKUP(Hoja2!G2,DATOS!$A$7:$G$202,5,FALSE))<>0,(IFERROR((VLOOKUP(Hoja2!G2,DATOS!$A$7:$G$202,5,FALSE)),\"\")),\"\"),\"\")","v":""},{"$f":"IFERROR(IF((VLOOKUP(Hoja2!G2,DATOS!$A$7:$G$202,6,FALSE))<>0,(IFERROR((VLOOKUP(Hoja2!G2,DATOS!$A$7:$G$202,6,FALSE)),\"\")),\"\"),\"\")","v":""},null,{"$f":"IF(SUM(D7:F7)<>0,SUM(D7:F7),\"\")","v":5}]
[null,null,null,null,null,null,null,{"$f":"IF(SUM(D8:F8)<>0,SUM(D8:F8),\"\")","v":""}]
[{"$f":"IFERROR(VLOOKUP(Hoja2!G4,DATOS!$A$7:$G$202,1,FALSE),\"\")","v":2},{"$f":"IFERROR(VLOOKUP(Hoja2!G4,DATOS!$A$7:$G$202,2,FALSE),\"\")","v":"Demolición de otros elementos existentes en la zona de actuación. Sin recuperación del material."},{"$f":"IFERROR((VLOOKUP(Hoja2!G4,DATOS!$A$7:$G$202,3,FALSE)),\"\")","v":"ud"},{"$f":"IFERROR(IF((VLOOKUP(Hoja2!G4,DATOS!$A$7:$G$202,4,FALSE))<>0,(IFERROR((VLOOKUP(Hoja2!G4,DATOS!$A$7:$G$202,4,FALSE)),\"\")),\"\"),\"\")","v":1},{"$f":"IFERROR(IF((VLOOKUP(Hoja2!G4,DATOS!$A$7:$G$202,5,FALSE))<>0,(IFERROR((VLOOKUP(Hoja2!G4,DATOS!$A$7:$G$202,5,FALSE)),\"\")),\"\"),\"\")","v":""},{"$f":"IFERROR(IF((VLOOKUP(Hoja2!G4,DATOS!$A$7:$G$202,6,FALSE))<>0,(IFERROR((VLOOKUP(Hoja2!G4,DATOS!$A$7:$G$202,6,FALSE)),\"\")),\"\"),\"\")","v":""},null,1]
[null,null,null,null,null,null,null,""]
[{"$f":"IFERROR(VLOOKUP(Hoja2!G6,DATOS!$A$7:$G$202,1,FALSE),\"\")","v":3},{"$f":"IFERROR(VLOOKUP(Hoja2!G6,DATOS!$A$7:$G$202,2,FALSE),\"\")","v":"Formación de rampa pendiente máxima inferior al 10% "},{"$f":"IFERROR((VLOOKUP(Hoja2!G6,DATOS!$A$7:$G$202,3,FALSE)),\"\")","v":"m2"},{"$f":"IFERROR(IF((VLOOKUP(Hoja2!G6,DATOS!$A$7:$G$202,4,FALSE))<>0,(IFERROR((VLOOKUP(Hoja2!G6,DATOS!$A$7:$G$202,4,FALSE)),\"\")),\"\"),\"\")","v":8},{"$f":"IFERROR(IF((VLOOKUP(Hoja2!G6,DATOS!$A$7:$G$202,5,FALSE))<>0,(IFERROR((VLOOKUP(Hoja2!G6,DATOS!$A$7:$G$202,5,FALSE)),\"\")),\"\"),\"\")","v":""},{"$f":"IFERROR(IF((VLOOKUP(Hoja2!G6,DATOS!$A$7:$G$202,6,FALSE))<>0,(IFERROR((VLOOKUP(Hoja2!G6,DATOS!$A$7:$G$202,6,FALSE)),\"\")),\"\"),\"\")","v":""},null,8]
[null,null,null,null,null,null,null,""]
[{"$f":"IFERROR(VLOOKUP(Hoja2!G8,DATOS!$A$7:$G$202,1,FALSE),\"\")","v":4},{"$f":"IFERROR(VLOOKUP(Hoja2!G8,DATOS!$A$7:$G$202,2,FALSE),\"\")","v":"Solado de baldosas cerámicas de gres porcelánico, de 60x30 cm, a elegir de entre las muestras propuestas, recibidas con mortero de cemento M-5 de 3 cm de espesor y rejuntadas con lechada de cemento blanco, L, BL-V 22,5, para junta mínima (entre 1,5 y 3 mm), coloreada con la misma tonalidad de las piezas."},{"$f":"IFERROR((VLOOKUP(Hoja2!G8,DATOS!$A$7:$G$202,3,FALSE)),\"\")","v":"m2"},{"$f":"IFERROR(IF((VLOOKUP(Hoja2!G8,DATOS!$A$7:$G$202,4,FALSE))<>0,(IFERROR((VLOOKUP(Hoja2!G8,DATOS!$A$7:$G$202,4,FALSE)),\"\")),\"\"),\"\")","v":8},{"$f":"IFERROR(IF((VLOOKUP(Hoja2!G8,DATOS!$A$7:$G$202,5,FALSE))<>0,(IFERROR((VLOOKUP(Hoja2!G8,DATOS!$A$7:$G$202,5,FALSE)),\"\")),\"\"),\"\")","v":""},{"$f":"IFERROR(IF((VLOOKUP(Hoja2!G8,DATOS!$A$7:$G$202,6,FALSE))<>0,(IFERROR((VLOOKUP(Hoja2!G8,DATOS!$A$7:$G$202,6,FALSE)),\"\")),\"\"),\"\")","v":""},null,8]
[null,null,null,null,null,null,null,""]
[{"$f":"IFERROR(VLOOKUP(Hoja2!G10,DATOS!$A$7:$G$202,1,FALSE),\"\")","v":5},{"$f":"IFERROR(VLOOKUP(Hoja2!G10,DATOS!$A$7:$G$202,2,FALSE),\"\")","v":"Enlucido de yeso de aplicación en capa fina C6 en una superficie previamente guarnecida, sobre paramento vertical, de hasta 3 m de altura./Enfoscado de cemento, a buena vista, aplicado sobre un paramento vertical interior, hasta 3 m de altura, acabado superficial fratasado, con mortero de cemento M-5."},{"$f":"IFERROR((VLOOKUP(Hoja2!G10,DATOS!$A$7:$G$202,3,FALSE)),\"\")","v":"m2"},{"$f":"IFERROR(IF((VLOOKUP(Hoja2!G10,DATOS!$A$7:$G$202,4,FALSE))<>0,(IFERROR((VLOOKUP(Hoja2!G10,DATOS!$A$7:$G$202,4,FALSE)),\"\")),\"\"),\"\")","v":10},{"$f":"IFERROR(IF((VLOOKUP(Hoja2!G10,DATOS!$A$7:$G$202,5,FALSE))<>0,(IFERROR((VLOOKUP(Hoja2!G10,DATOS!$A$7:$G$202,5,FALSE)),\"\")),\"\"),\"\")","v":""},{"$f":"IFERROR(IF((VLOOKUP(Hoja2!G10,DATOS!$A$7:$G$202,6,FALSE))<>0,(IFERROR((VLOOKUP(Hoja2!G10,DATOS!$A$7:$G$202,6,FALSE)),\"\")),\"\"),\"\")","v":""},null,10]
[null,null,null,null,null,null,null,""]
[{"$f":"IFERROR(VLOOKUP(Hoja2!G12,DATOS!$A$7:$G$202,1,FALSE),\"\")","v":6},{"$f":"IFERROR(VLOOKUP(Hoja2!G12,DATOS!$A$7:$G$202,2,FALSE),\"\")","v":"Pintura plástica lisa mate color, en interiores,en paramentos horizontales y verticales, dos manos. Incluso lijado, mano de imprimación con plástico diluído, plastecido, lijado y acabado."},{"$f":"IFERROR((VLOOKUP(Hoja2!G12,DATOS!$A$7:$G$202,3,FALSE)),\"\")","v":"ud"},{"$f":"IFERROR(IF((VLOOKUP(Hoja2!G12,DATOS!$A$7:$G$202,4,FALSE))<>0,(IFERROR((VLOOKUP(Hoja2!G12,DATOS!$A$7:$G$202,4,FALSE)),\"\")),\"\"),\"\")","v":1},{"$f":"IFERROR(IF((VLOOKUP(Hoja2!G12,DATOS!$A$7:$G$202,5,FALSE))<>0,(IFERROR((VLOOKUP(Hoja2!G12,DATOS!$A$7:$G$202,5,FALSE)),\"\")),\"\"),\"\")","v":""},{"$f":"IFERROR(IF((VLOOKUP(Hoja2!G12,DATOS!$A$7:$G$202,6,FALSE))<>0,(IFERROR((VLOOKUP(Hoja2!G12,DATOS!$A$7:$G$202,6,FALSE)),\"\")),\"\"),\"\")","v":""},null,1]
[null,null,null,null,null,null,null,""]
[{"$f":"IFERROR(VLOOKUP(Hoja2!G14,DATOS!$A$7:$G$202,1,FALSE),\"\")","v":7},{"$f":"IFERROR(VLOOKUP(Hoja2!G14,DATOS!$A$7:$G$202,2,FALSE),\"\")","v":"Barandilla metálica de 100 cm de altura, diseño según especificaciones, para escalera recta de un tramo, fijada mediante atornillado en obra de fábrica."},{"$f":"IFERROR((VLOOKUP(Hoja2!G14,DATOS!$A$7:$G$202,3,FALSE)),\"\")","v":"ml"},{"$f":"IFERROR(IF((VLOOKUP(Hoja2!G14,DATOS!$A$7:$G$202,4,FALSE))<>0,(IFERROR((VLOOKUP(Hoja2!G14,DATOS!$A$7:$G$202,4,FALSE)),\"\")),\"\"),\"\")","v":7.5},{"$f":"IFERROR(IF((VLOOKUP(Hoja2!G14,DATOS!$A$7:$G$202,5,FALSE))<>0,(IFERROR((VLOOKUP(Hoja2!G14,DATOS!$A$7:$G$202,5,FALSE)),\"\")),\"\"),\"\")","v":""},{"$f":"IFERROR(IF((VLOOKUP(Hoja2!G14,DATOS!$A$7:$G$202,6,FALSE))<>0,(IFERROR((VLOOKUP(Hoja2!G14,DATOS!$A$7:$G$202,6,FALSE)),\"\")),\"\"),\"\")","v":""},null,7.5]
[null,null,null,null,null,null,null,""]
[{"$f":"IFERROR(VLOOKUP(Hoja2!G16,DATOS!$A$7:$G$202,1,FALSE),\"\")","v":8},{"$f":"IFERROR(VLOOKUP(Hoja2!G16,DATOS!$A$7:$G$202,2,FALSE),\"\")","v":"Pasamanos realizado en el material especificado, fijado mediante atornillado a obra."},{"$f":"IFERROR((VLOOKUP(Hoja2!G16,DATOS!$A$7:$G$202,3,FALSE)),\"\")","v":"ml"},{"$f":"IFERROR(IF((VLOOKUP(Hoja2!G16,DATOS!$A$7:$G$202,4,FALSE))<>0,(IFERROR((VLOOKUP(Hoja2!G16,DATOS!$A$7:$G$202,4,FALSE)),\"\")),\"\"),\"\")","v":7.5},{"$f":"IFERROR(IF((VLOOKUP(Hoja2!G16,DATOS!$A$7:$G$202,5,FALSE))<>0,(IFERROR((VLOOKUP(Hoja2!G16,DATOS!$A$7:$G$202,5,FALSE)),\"\")),\"\"),\"\")","v":""},{"$f":"IFERROR(IF((VLOOKUP(Hoja2!G16,DATOS!$A$7:$G$202,6,FALSE))<>0,(IFERROR((VLOOKUP(Hoja2!G16,DATOS!$A$7:$G$202,6,FALSE)),\"\")),\"\"),\"\")","v":""},null,7.5]
[null,null,null,null,null,null,null,""]
[{"$f":"IFERROR(VLOOKUP(Hoja2!G18,DATOS!$A$7:$G$202,1,FALSE),\"\")","v":9},{"$f":"IFERROR(VLOOKUP(Hoja2!G18,DATOS!$A$7:$G$202,2,FALSE),\"\")","v":"Aparato de emergencia con lámpara fluorescente de 165 Lum, con caja de empotrar en material antichoque y autoextingible, con kit de fijación, de superficie (superficie máxima de 33m2), grado de protección IP 223, con base antichoque y difusor de metacrilato, señalización permanente con autonomía superior a 3hora con baterías herméticas recargables, alimentación a 220 V, de 34x13x10cm, incluso base de enchufe, etiqueta de señalización, replanteo, montaje, pequeño material y conexionado."},{"$f":"IFERROR((VLOOKUP(Hoja2!G18,DATOS!$A$7:$G$202,3,FALSE)),\"\")","v":"ud"},{"$f":"IFERROR(IF((VLOOKUP(Hoja2!G18,DATOS!$A$7:$G$202,4,FALSE))<>0,(IFERROR((VLOOKUP(Hoja2!G18,DATOS!$A$7:$G$202,4,FALSE)),\"\")),\"\"),\"\")","v":1},{"$f":"IFERROR(IF((VLOOKUP(Hoja2!G18,DATOS!$A$7:$G$202,5,FALSE))<>0,(IFERROR((VLOOKUP(Hoja2!G18,DATOS!$A$7:$G$202,5,FALSE)),\"\")),\"\"),\"\")","v":""},{"$f":"IFERROR(IF((VLOOKUP(Hoja2!G18,DATOS!$A$7:$G$202,6,FALSE))<>0,(IFERROR((VLOOKUP(Hoja2!G18,DATOS!$A$7:$G$202,6,FALSE)),\"\")),\"\"),\"\")","v":""},null,1]
[null,null,null,null,null,null,null,""]
[{"$f":"IFERROR(VLOOKUP(Hoja2!G20,DATOS!$A$7:$G$202,1,FALSE),\"\")","v":10},{"$f":"IFERROR(VLOOKUP(Hoja2!G20,DATOS!$A$7:$G$202,2,FALSE),\"\")","v":"Extintor de polvo seco ABC de 6 Kg de capacidad, eficacia 21A-113B. Colocado en el exterior del recinto de riesgo especial y cad 15 m de recorrido, en cada planta, desde el origen de evacuación (si se actúa en dichas plantas). Incluso soporte, señalización según UNE 23033-1 y DBSI4 2 1 y colocación."},{"$f":"IFERROR((VLOOKUP(Hoja2!G20,DATOS!$A$7:$G$202,3,FALSE)),\"\")","v":"ud"},{"$f":"IFERROR(IF((VLOOKUP(Hoja2!G20,DATOS!$A$7:$G$202,4,FALSE))<>0,(IFERROR((VLOOKUP(Hoja2!G20,DATOS!$A$7:$G$202,4,FALSE)),\"\")),\"\"),\"\")","v":1},{"$f":"IFERROR(IF((VLOOKUP(Hoja2!G20,DATOS!$A$7:$G$202,5,FALSE))<>0,(IFERROR((VLOOKUP(Hoja2!G20,DATOS!$A$7:$G$202,5,FALSE)),\"\")),\"\"),\"\")","v":""},{"$f":"IFERROR(IF((VLOOKUP(Hoja2!G20,DATOS!$A$7:$G$202,6,FALSE))<>0,(IFERROR((VLOOKUP(Hoja2!G20,DATOS!$A$7:$G$202,6,FALSE)),\"\")),\"\"),\"\")","v":""},null,1]
[null,null,null,null,null,null,null,""]
[{"$f":"IFERROR(VLOOKUP(Hoja2!G22,DATOS!$A$7:$G$202,1,FALSE),\"\")","v":""},{"$f":"IFERROR(VLOOKUP(Hoja2!G22,DATOS!$A$7:$G$202,2,FALSE),\"\")","v":""},{"$f":"IFERROR((VLOOKUP(Hoja2!G22,DATOS!$A$7:$G$202,3,FALSE)),\"\")","v":""},{"$f":"IFERROR(IF((VLOOKUP(Hoja2!G22,DATOS!$A$7:$G$202,4,FALSE))<>0,(IFERROR((VLOOKUP(Hoja2!G22,DATOS!$A$7:$G$202,4,FALSE)),\"\")),\"\"),\"\")","v":""},{"$f":"IFERROR(IF((VLOOKUP(Hoja2!G22,DATOS!$A$7:$G$202,5,FALSE))<>0,(IFERROR((VLOOKUP(Hoja2!G22,DATOS!$A$7:$G$202,5,FALSE)),\"\")),\"\"),\"\")","v":""},{"$f":"IFERROR(IF((VLOOKUP(Hoja2!G22,DATOS!$A$7:$G$202,6,FALSE))<>0,(IFERROR((VLOOKUP(Hoja2!G22,DATOS!$A$7:$G$202,6,FALSE)),\"\")),\"\"),\"\")","v":""},null,""]
[null,null,null,null,null,null,null,""]
[{"$f":"IFERROR(VLOOKUP(Hoja2!G24,DATOS!$A$7:$G$202,1,FALSE),\"\")","v":""},{"$f":"IFERROR(VLOOKUP(Hoja2!G24,DATOS!$A$7:$G$202,2,FALSE),\"\")","v":""},{"$f":"IFERROR((VLOOKUP(Hoja2!G24,DATOS!$A$7:$G$202,3,FALSE)),\"\")","v":""},{"$f":"IFERROR(IF((VLOOKUP(Hoja2!G24,DATOS!$A$7:$G$202,4,FALSE))<>0,(IFERROR((VLOOKUP(Hoja2!G24,DATOS!$A$7:$G$202,4,FALSE)),\"\")),\"\"),\"\")","v":""},{"$f":"IFERROR(IF((VLOOKUP(Hoja2!G24,DATOS!$A$7:$G$202,5,FALSE))<>0,(IFERROR((VLOOKUP(Hoja2!G24,DATOS!$A$7:$G$202,5,FALSE)),\"\")),\"\"),\"\")","v":""},{"$f":"IFERROR(IF((VLOOKUP(Hoja2!G24,DATOS!$A$7:$G$202,6,FALSE))<>0,(IFERROR((VLOOKUP(Hoja2!G24,DATOS!$A$7:$G$202,6,FALSE)),\"\")),\"\"),\"\")","v":""},null,""]
[null,null,null,null,null,null,null,""]
[{"$f":"IFERROR(VLOOKUP(Hoja2!G26,DATOS!$A$7:$G$202,1,FALSE),\"\")","v":""},{"$f":"IFERROR(VLOOKUP(Hoja2!G26,DATOS!$A$7:$G$202,2,FALSE),\"\")","v":""},{"$f":"IFERROR((VLOOKUP(Hoja2!G26,DATOS!$A$7:$G$202,3,FALSE)),\"\")","v":""},{"$f":"IFERROR(IF((VLOOKUP(Hoja2!G26,DATOS!$A$7:$G$202,4,FALSE))<>0,(IFERROR((VLOOKUP(Hoja2!G26,DATOS!$A$7:$G$202,4,FALSE)),\"\")),\"\"),\"\")","v":""},{"$f":"IFERROR(IF((VLOOKUP(Hoja2!G26,DATOS!$A$7:$G$202,5,FALSE))<>0,(IFERROR((VLOOKUP(Hoja2!G26,DATOS!$A$7:$G$202,5,FALSE)),\"\")),\"\"),\"\")","v":""},{"$f":"IFERROR(IF((VLOOKUP(Hoja2!G26,DATOS!$A$7:$G$202,6,FALSE))<>0,(IFERROR((VLOOKUP(Hoja2!G26,DATOS!$A$7:$G$202,6,FALSE)),\"\")),\"\"),\"\")","v":""},null,""]
[null,null,null,null,null,null,null,""]
[{"$f":"IFERROR(VLOOKUP(Hoja2!G28,DATOS!$A$7:$G$202,1,FALSE),\"\")","v":""},{"$f":"IFERROR(VLOOKUP(Hoja2!G28,DATOS!$A$7:$G$202,2,FALSE),\"\")","v":""},{"$f":"IFERROR((VLOOKUP(Hoja2!G28,DATOS!$A$7:$G$202,3,FALSE)),\"\")","v":""},{"$f":"IFERROR(IF((VLOOKUP(Hoja2!G28,DATOS!$A$7:$G$202,4,FALSE))<>0,(IFERROR((VLOOKUP(Hoja2!G28,DATOS!$A$7:$G$202,4,FALSE)),\"\")),\"\"),\"\")","v":""},{"$f":"IFERROR(IF((VLOOKUP(Hoja2!G28,DATOS!$A$7:$G$202,5,FALSE))<>0,(IFERROR((VLOOKUP(Hoja2!G28,DATOS!$A$7:$G$202,5,FALSE)),\"\")),\"\"),\"\")","v":""},{"$f":"IFERROR(IF((VLOOKUP(Hoja2!G28,DATOS!$A$7:$G$202,6,FALSE))<>0,(IFERROR((VLOOKUP(Hoja2!G28,DATOS!$A$7:$G$202,6,FALSE)),\"\")),\"\"),\"\")","v":""},null,""]

{"sheet":"Hoja2","index":4,"n_rows":44,"n_cols":7,"rows_kept":44,"cut":false,"hidden":false,"merged":[]}
[]
[null,null,null,null,null,null,1]
[]
[null,null,null,null,null,null,2]
[]
[null,null,null,null,null,null,3]
[]
[null,null,null,null,null,null,4]
[]
[null,null,null,null,null,null,5]
[]
[null,null,null,null,null,null,6]
[]
[null,null,null,null,null,null,7]
[]
[null,null,null,null,null,null,8]
[]
[null,null,null,null,null,null,9]
[]
[null,null,null,null,null,null,10]
[]
[null,null,null,null,null,null,11]
[]
[null,null,null,null,null,null,12]
[]
[null,null,null,null,null,null,13]
[]
[null,null,null,null,null,null,14]
[]
[null,null,null,null,null,null,15]
[]
[null,null,null,null,null,null,16]
[]
[null,null,null,null,null,null,17]
[]
[null,null,null,null,null,null,18]
[]
[null,null,null,null,null,null,19]
[]
[null,null,null,null,null,null,20]
[]
[null,null,null,null,null,null,21]
[]
[null,null,null,null,null,null,22]